lending/lending_fUSD_20240110
["ID","MTS","AMOUNT","RATE_DAILY","PERIOD"]
[311053789,1704891066343,-603.93,0.00030684,2]
[311053790,1704891066354,-953.36,0.00030684,2]
[311053791,1704891066367,-500.0,0.00030684,2]
[311053792,1704891066379,-595.36,0.00030684,2]
[311053793,1704891066398,-999.87,0.00030684,2]
[311053794,1704891066409,-799.61,0.00030684,2]
[311053795,1704891066420,-500.0,0.00030684,2]
[311053796,1704891066431,-679.43,0.00030684,2]
[311053797,1704891066442,-911.61,0.00030684,2]
[311053798,1704891066454,-545.66,0.00030684,2]
[311053799,1704891066466,-608.6,0.00030684,2]
[311053800,1704891066477,-500.0,0.00030684,2]
[311053801,1704891066488,-500.0,0.00030684,2]
[311053802,1704891066499,-500.0,0.00030684,2]
[311053803,1704891066510,-528.0,0.00030684,2]
[311053804,1704891066521,-717.61,0.00030684,2]
[311053805,1704891066532,-668.27,0.00030684,2]
[311053806,1704891066543,-500.0,0.00030684,2]
[311053807,1704891066554,-500.0,0.00030684,2]
[311053808,1704891066565,-500.0,0.00030684,2]
[311053809,1704891066576,-500.0,0.00030684,2]
[311053810,1704891066587,-300.0,0.00030684,2]
[311053811,1704891066598,-922.19,0.00030684,2]
[311053812,1704891066611,-500.0,0.00030684,2]
[311053813,1704891066622,-570.16618286,0.00030684,2]
[311053814,1704891066634,-532.19026038,0.00030684,2]
[311053815,1704891066645,-500.0,0.00030684,2]
[311053816,1704891066657,-500.0,0.00030684,2]
[311053817,1704891066668,-500.0,0.00030684,2]
[311053818,1704891066680,-500.0,0.00030684,2]
[311053819,1704891066692,-1150.48,0.00030684,2]
[311053820,1704891066702,-500.0,0.00030684,2]
[311053821,1704891066714,-500.0,0.00030684,2]
[311053822,1704891066725,-500.0,0.00030684,2]
[311053823,1704891066736,-500.0,0.00030684,2]
[311053824,1704891066748,-856.23,0.00030684,2]
[311053825,1704891066760,-500.0,0.00030684,2]
[311053826,1704891066771,-500.0,0.00030684,2]
[311053827,1704891066783,-943.83,0.00030684,2]
[311053828,1704891066794,-500.0,0.00030684,2]
[311053829,1704891066805,-677.16,0.00030684,2]
[311053830,1704891066817,-500.0,0.00030684,2]
[311053831,1704891066827,-1357.7,0.00030684,2]
[311053832,1704891066838,-944.54,0.00030684,2]
[311053833,1704891066849,-819.95,0.00030684,2]
[311053834,1704891066862,-500.0,0.00030684,2]
[311053835,1704891066873,-613.7,0.00030684,2]
[311053836,1704891066884,-845.23,0.00030684,2]
[311053837,1704891066895,-500.0,0.00030684,2]
[311053838,1704891066906,-1144.78,0.00030684,2]
[311053839,1704891066916,-572.57,0.00030684,2]
[311053840,1704891066929,-523.04,0.00030684,2]
[311053841,1704891066939,-500.0,0.00030684,2]
[311053842,1704891066949,-981.88,0.00030684,2]
[311053843,1704891066964,-500.0,0.00030684,2]
[311053844,1704891066974,-500.0,0.00030684,2]
[311053845,1704891066984,-500.0,0.00030684,2]
[311053846,1704891066999,-500.0,0.00030684,2]
[311053847,1704891067010,-500.0,0.00030684,2]
[311053848,1704891067020,-500.0,0.00030684,2]
[311053849,1704891067033,-1009.3,0.00030684,2]
[311053850,1704891067044,-500.0,0.00030684,2]
[311053851,1704891067055,-804.49,0.00030684,2]
[311053852,1704891067341,-500.0,0.00030684,2]
[311053853,1704891067396,-688.65,0.00030684,2]
[311053854,1704891067406,-679.35,0.00030684,2]
[311053855,1704891067417,-626.97,0.00030684,2]
[311053856,1704891067427,-1228.41,0.00030684,2]
[311053857,1704891067443,-500.0,0.00030684,2]
[311053858,1704891067453,-835.39,0.00030684,2]
[311053859,1704891067464,-500.0,0.00030684,2]
[311053860,1704891067486,-500.0,0.00030684,2]
[311053861,1704891067498,-567.03,0.00030684,2]
[311053862,1704891067508,-664.11,0.00030684,2]
[311053863,1704891067519,-699.18,0.00030684,2]
[311053864,1704891067529,-729.83,0.00030684,2]
[311053865,1704891067540,-500.0,0.00030684,2]
[311053866,1704891067550,-574.64,0.00030684,2]
[311053867,1704891067561,-847.62,0.00030684,2]
[311053868,1704891067572,-500.0,0.00030684,2]
[311053869,1704891067582,-1277.67,0.00030684,2]
[311053870,1704891067593,-755.08,0.00030684,2]
[311053871,1704891067603,-1050.74,0.00030684,2]
[311053872,1704891067616,-1281.13,0.00030684,2]
[311053873,1704891067628,-500.0,0.00030684,2]
[311053874,1704891067638,-667.72,0.00030684,2]
[311053875,1704891067648,-1129.59,0.00030684,2]
[311053876,1704891067670,-500.0,0.00030684,2]
[311053877,1704891067680,-1299.52,0.00030684,2]
[311053878,1704891067690,-500.0,0.00030684,2]
[311053879,1704891067700,-500.0,0.00030684,2]
[311053880,1704891067710,-500.0,0.00030684,2]
[311053881,1704891067721,-665.14,0.00030684,2]
[311053882,1704891067731,-1462.15,0.00030684,2]
[311053883,1704891067741,-883.1,0.00030684,2]
[311053884,1704891067751,-736.72,0.00030684,2]
[311053885,1704891067760,-484.69063229,0.00030684,2]
[311053886,1704891067770,-932.0,0.00030684,2]
[311053887,1704891067780,-500.0,0.00030684,2]
[311053888,1704891067790,-933.85,0.00030684,2]
[311053889,1704891067800,-500.0,0.00030684,2]
[311053890,1704891067810,-500.0,0.00030684,2]
[311053891,1704891067820,-715.55,0.00030684,2]
[311053892,1704891067830,-1106.31,0.00030684,2]
[311053893,1704891067839,-500.0,0.00030684,2]
[311053894,1704891067849,-500.0,0.00030684,2]
[311053895,1704891067861,-616.84,0.00030684,2]
[311053896,1704891067871,-500.0,0.00030684,2]
[311053897,1704891067881,-500.0,0.00030684,2]
[311053898,1704891067890,-989.02,0.00030684,2]
[311053899,1704891067900,-500.0,0.00030684,2]
[311053900,1704891067910,-500.0,0.00030684,2]
[311053901,1704891067920,-1195.8,0.00030684,2]
[311053902,1704891067930,-1108.12,0.00030684,2]
[311053903,1704891067940,-1806.82,0.00030684,2]
[311053904,1704891067950,-500.0,0.00030684,2]
[311053905,1704891067960,-915.35,0.00030684,2]
[311053906,1704891067970,-1387.71,0.00030684,2]
[311053907,1704891067980,-500.0,0.00030684,2]
[311053908,1704891067990,-1503.57,0.00030684,2]
[311053909,1704891067999,-1262.12,0.00030684,2]
[311053910,1704891068010,-728.24,0.00030684,2]
[311053911,1704891068020,-556.89,0.00030684,2]
[311053912,1704891068030,-616.64866581,0.00030684,2]
[311053913,1704891068040,-749.59,0.00030684,2]
[311053914,1704891068049,-500.0,0.00030684,2]
[311053915,1704891068060,-500.0,0.00030684,2]
[311053916,1704891068069,-500.0,0.00030684,2]
[311053917,1704891068079,-968.99,0.00030684,2]
[311053918,1704891068090,-1148.53,0.00030684,2]
[311053919,1704891068101,-500.0,0.00030684,2]
[311053920,1704891068115,-500.0,0.00030684,2]
[311053921,1704891068124,-1486.97,0.00030684,2]
[311053922,1704891068135,-1273.18,0.00030684,2]
[311053923,1704891068145,-500.0,0.00030684,2]
[311053924,1704891068155,-1334.19,0.00030684,2]
[311053925,1704891068166,-500.0,0.00030684,2]
[311053926,1704891068175,-500.0,0.00030684,2]
[311053927,1704891068186,-810.04,0.00030684,2]
[311053928,1704891068195,-500.0,0.00030684,2]
[311053929,1704891068206,-945.46,0.00030684,2]
[311053930,1704891068215,-884.9,0.00030684,2]
[311053931,1704891068225,-566.84,0.00030684,2]
[311053932,1704891068235,-500.0,0.00030684,2]
[311053933,1704891068244,-500.0,0.00030684,2]
[311053934,1704891068254,-659.65,0.00030684,2]
[311053935,1704891068263,-500.0,0.00030684,2]
[311053936,1704891068274,-1698.48,0.00030684,2]
[311053937,1704891068283,-1658.69,0.00030684,2]
[311053938,1704891068296,-1894.62,0.00030684,2]
[311053939,1704891068306,-530.43,0.00030684,2]
[311053940,1704891068316,-648.28,0.00030684,2]
[311053941,1704891068326,-635.25,0.00030684,2]
[311053942,1704891068337,-716.26,0.00030684,2]
[311053943,1704891068347,-500.0,0.00030684,2]
[311053944,1704891068356,-500.0,0.00030684,2]
[311053945,1704891068375,-500.0,0.00030684,2]
[311053946,1704891068394,-659.2,0.00030684,2]
[311053947,1704891068404,-1075.0,0.00030684,2]
[311053948,1704891068415,-912.69,0.00030684,2]
[311053949,1704891068426,-500.0,0.00030684,2]
[311053950,1704891068435,-500.0,0.00030684,2]
[311053951,1704891068445,-500.0,0.00030684,2]
[311053952,1704891068454,-994.89,0.00030684,2]
[311053953,1704891068464,-500.0,0.00030684,2]
[311053954,1704891068474,-536.25,0.00030684,2]
[311053955,1704891068484,-535.04,0.00030684,2]
[311053956,1704891068494,-763.92,0.00030684,2]
[311053957,1704891068504,-1507.5,0.00030684,2]
[311053958,1704891068514,-1352.86,0.00030684,2]
[311053959,1704891068524,-500.0,0.00030684,2]
[311053960,1704891068533,-763.85,0.00030684,2]
[311053961,1704891068543,-500.0,0.00030684,2]
[311053962,1704891068552,-500.0,0.00030684,2]
[311053963,1704891068562,-1058.85,0.00030684,2]
[311053964,1704891068572,-500.0,0.00030684,2]
[311053965,1704891068582,-1144.7,0.00030684,2]
[311053966,1704891068592,-592.06,0.00030684,2]
[311053967,1704891068601,-519.93135599,0.00030684,2]
[311053968,1704891068613,-500.0,0.00030684,2]
[311053969,1704891068623,-982.41,0.00030684,2]
[311053970,1704891068632,-500.0,0.00030684,2]
[311053971,1704891068642,-500.0,0.00030684,2]
[311053972,1704891068652,-500.0,0.00030684,2]
[311053973,1704891068661,-960.45,0.00030684,2]
[311053974,1704891068672,-500.0,0.00030684,2]
[311053975,1704891068681,-1268.39,0.00030684,2]
[311053976,1704891068690,-500.0,0.00030684,2]
[311053977,1704891068700,-1176.82,0.00030684,2]
[311053978,1704891068709,-500.0,0.00030684,2]
[311053979,1704891068719,-500.0,0.00030684,2]
[311053980,1704891068729,-1187.57,0.00030684,2]
[311053981,1704891068739,-1591.28,0.00030684,2]
[311053982,1704891068748,-316.89461446,0.00030684,2]
[311053983,1704891068759,-500.0,0.00030684,2]
[311053984,1704891068769,-982.23,0.00030684,2]
[311053985,1704891068779,-960.81,0.00030684,2]
[311053986,1704891068789,-500.0,0.00030684,2]
[311053987,1704891068798,-1435.01,0.00030684,2]
[311053988,1704891068808,-500.0,0.00030684,2]
[311053989,1704891068817,-1207.08,0.00030684,2]
[311053990,1704891068827,-771.19,0.00030684,2]
[311053991,1704891068837,-1012.64,0.00030684,2]
[311053992,1704891068847,-215.24159211,0.00030684,2]
[311053993,1704891068856,-500.0,0.00030684,2]
[311053994,1704891068868,-500.0,0.00030684,2]
[311053995,1704891068877,-1395.58,0.00030684,2]
[311053996,1704891068887,-1179.08,0.00030684,2]
[311053997,1704891068896,-1128.18,0.00030684,2]
[311053998,1704891068906,-524.56,0.00030684,2]
[311053999,1704891068916,-1055.12,0.00030684,2]
[311054000,1704891068925,-620.01,0.00030684,2]
[311054001,1704891068935,-1511.92,0.00030684,2]
[311054002,1704891068945,-835.1,0.00030684,2]
[311054003,1704891068955,-1185.27,0.00030684,2]
[311054004,1704891068964,-1387.63,0.00030684,2]
[311054005,1704891068974,-904.42,0.00030684,2]
[311054006,1704891068983,-500.0,0.00030684,2]
[311054007,1704891068992,-525.95,0.00030684,2]
[311054008,1704891069002,-1196.53,0.00030684,2]
[311054009,1704891069012,-500.0,0.00030684,2]
[311054010,1704891069022,-1787.03,0.00030684,2]
[311054011,1704891069031,-674.1,0.00030684,2]
[311054012,1704891069041,-1077.63,0.00030684,2]
[311054013,1704891069050,-755.38,0.00030684,2]
[311054014,1704891069060,-360.57069379,0.00030684,2]
[311054015,1704891069070,-500.0,0.00030684,2]
[311054016,1704891069079,-581.62,0.00030684,2]
[311054017,1704891069089,-1257.2,0.00030684,2]
[311054018,1704891069098,-1024.85,0.00030684,2]
[311054019,1704891069110,-500.0,0.00030684,2]
[311054020,1704891069120,-500.0,0.00030684,2]
[311054021,1704891069129,-836.69,0.00030684,2]
[311054022,1704891069139,-500.0,0.00030684,2]
[311054023,1704891069148,-525.09,0.00030684,2]
[311054024,1704891069158,-782.38,0.00030684,2]
[311054025,1704891069168,-500.0,0.00030684,2]
[311054026,1704891069178,-1749.35,0.00030684,2]
[311054027,1704891069188,-1000.33,0.00030684,2]
[311054028,1704891069197,-604.42,0.00030684,2]
[311054029,1704891069207,-500.0,0.00030684,2]
[311054030,1704891069217,-500.0,0.00030684,2]
[311054031,1704891069227,-500.0,0.00030684,2]
[311054032,1704891069238,-500.0,0.00030684,2]
[311054033,1704891069248,-765.38,0.00030684,2]
[311054034,1704891069257,-878.75,0.00030684,2]
[311054035,1704891069271,-500.0,0.00030684,2]
[311054036,1704891069280,-679.72,0.00030684,2]
[311054037,1704891069291,-1881.36,0.00030684,2]
[311054038,1704891069309,-500.0,0.00030684,2]
[311054039,1704891069319,-631.79,0.00030684,2]
[311054040,1704891069335,-500.0,0.00030684,2]
[311054041,1704891069345,-500.0,0.00030684,7]
[311054042,1704891069355,-218.16701607,0.00030684,2]
[311054043,1704891069368,-500.0,0.00030684,2]
[311054044,1704891069378,-500.0,0.00030684,2]
[311054045,1704891069388,-500.0,0.00030684,2]
[311054046,1704891069399,-1166.65,0.00030684,2]
[311054047,1704891069409,-756.6,0.00030684,2]
[311054048,1704891069419,-2844.34,0.00030684,2]
[311054049,1704891069430,-641.96,0.00030684,2]
[311054050,1704891069451,-304.80056574,0.00030684,2]
[311054051,1704891069461,-500.0,0.00030684,2]
[311054052,1704891069471,-1044.01,0.00030684,2]
[311054053,1704891069482,-500.0,0.00030684,2]
[311054054,1704891069496,-500.0,0.00030684,2]
[311054055,1704891069506,-500.0,0.00030684,2]
[311054056,1704891069516,-1332.76,0.00030684,2]
[311054057,1704891069526,-500.0,0.00030684,2]
[311054058,1704891069536,-1000.0,0.00030684,2]
[311054059,1704891069546,-1244.23,0.00030684,2]
[311054060,1704891069555,-729.63,0.00030684,2]
[311054061,1704891069565,-500.0,0.00030684,2]
[311054062,1704891069580,-500.0,0.00030684,2]
[311054063,1704891069594,-757.76,0.00030684,2]
[311054064,1704891069606,-500.0,0.00030684,2]
[311054065,1704891069623,-500.0,0.00030684,2]
[311054066,1704891069638,-500.0,0.00030684,2]
[311054067,1704891069648,-500.0,0.00030684,2]
[311054068,1704891069658,-1127.84,0.00030684,2]
[311054069,1704891069668,-1044.13,0.00030684,2]
[311054070,1704891069682,-1154.12,0.00030684,2]
[311054071,1704891069694,-551.43,0.00030684,2]
[311054072,1704891069704,-500.0,0.00030684,2]
[311054073,1704891069714,-1354.13,0.00030684,2]
[311054074,1704891069724,-500.0,0.00030684,2]
[311054075,1704891069734,-500.0,0.00030684,2]
[311054076,1704891069745,-500.0,0.00030684,2]
[311054077,1704891069755,-1181.63,0.00030684,2]
[311054078,1704891069764,-638.51,0.00030684,2]
[311054079,1704891069774,-862.28,0.00030684,2]
[311054080,1704891069784,-757.94,0.00030684,2]
[311054081,1704891069794,-1015.59,0.00030684,2]
[311054082,1704891069803,-500.0,0.00030684,2]
[311054083,1704891069814,-848.07,0.00030684,2]
[311054084,1704891069823,-823.4,0.00030684,2]
[311054085,1704891069833,-252.80983559,0.00030684,2]
[311054086,1704891069842,-783.14,0.00030684,2]
[311054087,1704891069865,-500.0,0.00030684,2]
[311054088,1704891069875,-500.0,0.00030684,2]
[311054089,1704891069981,-1634.17,0.00030684,2]
[311054090,1704891069992,-892.34,0.00030684,2]
[311054091,1704891070002,-500.0,0.00030684,2]
[311054092,1704891070012,-500.0,0.00030684,2]
[311054093,1704891070022,-500.0,0.00030684,2]
[311054094,1704891070031,-1731.94,0.00030684,2]
[311054095,1704891070042,-1097.53,0.00030684,2]
[311054096,1704891070052,-1300.74,0.00030684,2]
[311054097,1704891070062,-500.0,0.00030684,2]
[311054098,1704891070071,-1118.35,0.00030684,2]
[311054099,1704891070081,-821.71,0.00030684,2]
[311054100,1704891070091,-1115.5,0.00030684,2]
[311054101,1704891070100,-799.47,0.00030684,2]
[311054102,1704891070110,-500.0,0.00030684,2]
[311054103,1704891070122,-500.0,0.00030684,2]
[311054104,1704891070131,-500.0,0.00030684,2]
[311054105,1704891070140,-500.0,0.00030684,2]
[311054106,1704891070157,-1438.57,0.00030684,2]
[311054107,1704891070167,-1466.84,0.00030684,2]
[311054108,1704891070185,-601.79225574,0.00030684,2]
[311054109,1704891070196,-652.51,0.00030684,2]
[311054110,1704891070206,-500.0,0.00030684,2]
[311054111,1704891070216,-500.0,0.00030684,2]
[311054112,1704891070226,-1106.08,0.00030684,2]
[311054113,1704891070235,-500.0,0.00030684,2]
[311054114,1704891070246,-500.0,0.00030684,2]
[311054115,1704891070255,-1804.0,0.00030684,2]
[311054116,1704891070265,-1166.35,0.00030684,2]
[311054117,1704891070275,-500.0,0.00030684,2]
[311054118,1704891070288,-1134.06,0.00030684,2]
[311054119,1704891070301,-1196.42,0.00030684,2]
[311054120,1704891070318,-545.73,0.00030684,2]
[311054121,1704891070327,-848.12,0.00030684,2]
[311054122,1704891070338,-500.0,0.00030684,2]
[311054123,1704891070352,-714.75,0.00030684,2]
[311054124,1704891070364,-500.0,0.00030684,2]
[311054125,1704891070375,-1566.38,0.00030684,2]
[311054126,1704891070386,-907.54,0.00030684,2]
[311054127,1704891070395,-556.57,0.00030684,2]
[311054128,1704891070405,-500.0,0.00030684,2]
[311054129,1704891070414,-1841.24,0.00030684,2]
[311054130,1704891070424,-924.42,0.00030684,2]
[311054131,1704891070434,-500.0,0.00030684,2]
[311054132,1704891070443,-500.0,0.00030684,2]
[311054133,1704891070453,-2743.08,0.00030684,2]
[311054134,1704891070462,-500.0,0.00030684,2]
[311054135,1704891070472,-500.0,0.00030684,2]
[311054136,1704891070482,-1407.91,0.00030684,2]
[311054137,1704891070492,-627.59,0.00030684,2]
[311054138,1704891070502,-1648.35,0.00030684,2]
[311054139,1704891070512,-546.87,0.00030684,2]
[311054140,1704891070522,-1615.48,0.00030684,2]
[311054141,1704891070532,-574.07,0.00030684,2]
[311054142,1704891070542,-1687.92,0.00030684,2]
[311054143,1704891070551,-555.68,0.00030684,2]
[311054144,1704891070560,-997.75,0.00030684,2]
[311054145,1704891070570,-1436.16,0.00030684,2]
[311054146,1704891070579,-783.23,0.00030684,2]
[311054147,1704891070589,-500.0,0.00030684,2]
[311054148,1704891070598,-893.83,0.00030684,2]
[311054149,1704891070608,-608.29,0.00030684,2]
[311054150,1704891070621,-1132.03,0.00030684,2]
[311054151,1704891070630,-500.0,0.00030684,2]
[311054152,1704891070640,-1380.57,0.00030684,2]
[311054153,1704891070658,-933.87,0.00030684,2]
[311054154,1704891070668,-500.0,0.00030684,2]
[311054155,1704891070687,-500.0,0.00030684,2]
[311054156,1704891070697,-957.42,0.00030684,2]
[311054157,1704891070707,-995.9,0.00030684,2]
[311054158,1704891070718,-500.0,0.00030684,2]
[311054159,1704891070740,-1856.22,0.00030684,2]
[311054160,1704891070750,-895.94,0.00030684,2]
[311054161,1704891070760,-1480.74,0.00030684,2]
[311054162,1704891070777,-500.0,0.00030684,2]
[311054163,1704891070787,-776.38,0.00030684,2]
[311054164,1704891070796,-500.0,0.00030684,2]
[311054165,1704891070806,-1298.12,0.00030684,2]
[311054166,1704891070824,-500.0,0.00030684,2]
[311054167,1704891070833,-500.0,0.00030684,2]
[311054168,1704891070850,-333.27,0.00030684,2]
[311054169,1704891070862,-598.48441581,0.00030684,2]
[311054170,1704891070872,-1188.98,0.00030684,2]
[311054171,1704891070882,-791.87,0.00030684,2]
[311054172,1704891070892,-500.0,0.00030684,2]
[311054173,1704891070901,-577.69,0.00030684,2]
[311054174,1704891070911,-700.71,0.00030684,2]
[311054175,1704891070920,-682.9,0.00030684,2]
[311054176,1704891070929,-500.0,0.00030684,2]
[311054177,1704891070939,-1037.2,0.00030684,2]
[311054178,1704891070948,-500.0,0.00030684,2]
[311054179,1704891070958,-500.0,0.00030684,2]
[311054180,1704891070967,-923.76,0.00030684,2]
[311054181,1704891070977,-500.0,0.00030684,2]
[311054182,1704891070986,-1290.28,0.00030684,2]
[311054183,1704891070996,-694.02,0.00030684,2]
[311054184,1704891071006,-500.0,0.00030684,2]
[311054185,1704891071015,-672.12,0.00030684,2]
[311054186,1704891071025,-751.24,0.00030684,2]
[311054187,1704891071034,-500.0,0.00030684,2]
[311054188,1704891071044,-472.90761034,0.00030684,2]
[311054189,1704891071053,-791.74,0.00030684,2]
[311054190,1704891071062,-500.0,0.00030684,2]
[311054191,1704891071071,-2135.41,0.00030684,2]
[311054192,1704891071081,-630.74,0.00030684,2]
[311054193,1704891071090,-500.0,0.00030684,2]
[311054194,1704891071099,-1065.89,0.00030684,2]
[311054195,1704891071108,-500.0,0.00030684,2]
[311054196,1704891071119,-1611.31,0.00030684,2]
[311054197,1704891071128,-537.76,0.00030684,2]
[311054198,1704891071137,-500.0,0.00030684,2]
[311054199,1704891071146,-500.0,0.00030684,2]
[311054200,1704891071155,-500.0,0.00030684,2]
[311054201,1704891071164,-500.0,0.00030684,2]
[311054202,1704891071174,-500.0,0.00030684,2]
[311054203,1704891071183,-508.12,0.00030684,2]
[311054204,1704891071192,-500.0,0.00030684,2]
[311054205,1704891071201,-1096.88,0.00030684,2]
[311054206,1704891071211,-500.0,0.00030684,2]
[311054207,1704891071221,-500.0,0.00030684,2]
[311054208,1704891071230,-1235.12,0.00030684,2]
[311054209,1704891071240,-1332.96,0.00030684,2]
[311054210,1704891071249,-1351.54,0.00030684,2]
[311054211,1704891071259,-500.0,0.00030684,2]
[311054212,1704891071269,-500.0,0.00030684,2]
[311054213,1704891071278,-500.0,0.00030684,2]
[311054214,1704891071288,-525.51,0.00030684,2]
[311054215,1704891071298,-500.0,0.00030684,2]
[311054216,1704891071307,-500.0,0.00030684,2]
[311054217,1704891071316,-500.0,0.00030684,2]
[311054218,1704891071326,-500.0,0.00030684,2]
[311054219,1704891071338,-500.0,0.00030684,2]
[311054220,1704891071348,-500.0,0.00030684,2]
[311054221,1704891071357,-551.86,0.00030684,2]
[311054222,1704891071370,-500.0,0.00030684,2]
[311054223,1704891071380,-2153.22,0.00030684,2]
[311054224,1704891071390,-894.32,0.00030684,2]
[311054225,1704891071400,-1551.48,0.00030684,2]
[311054226,1704891071410,-784.54,0.00030684,2]
[311054227,1704891071420,-1823.35,0.00030684,2]
[311054228,1704891071430,-656.22,0.00030684,2]
[311054229,1704891071443,-500.0,0.00030684,2]
[311054230,1704891071453,-500.0,0.00030684,2]
[311054231,1704891071463,-903.93,0.00030684,2]
[311054232,1704891071474,-500.0,0.00030684,2]
[311054233,1704891071485,-1466.91,0.00030684,2]
[311054234,1704891071495,-1006.56,0.00030684,2]
[311054235,1704891071506,-1170.77,0.00030684,2]
[311054236,1704891071516,-500.0,0.00030684,2]
[311054237,1704891071526,-1655.17,0.00030684,2]
[311054238,1704891071539,-3133.81,0.00030684,2]
[311054239,1704891071549,-533.08,0.00030684,2]
[311054240,1704891071559,-761.32,0.00030684,2]
[311054241,1704891071569,-500.0,0.00030684,2]
[311054242,1704891071579,-500.0,0.00030684,2]
[311054243,1704891071588,-500.0,0.00030684,2]
[311054244,1704891071598,-500.0,0.00030684,2]
[311054245,1704891071608,-500.0,0.00030684,2]
[311054246,1704891071622,-500.0,0.00030684,2]
[311054247,1704891071631,-500.0,0.00030684,2]
[311054248,1704891071641,-1368.59,0.00030684,2]
[311054249,1704891071651,-661.49,0.00030684,2]
[311054250,1704891071660,-572.88768467,0.00030684,2]
[311054251,1704891071670,-1618.49,0.00030684,2]
[311054252,1704891071680,-500.0,0.00030684,2]
[311054253,1704891071689,-8919.11,0.00030684,2]
[311054254,1704891071698,-696.22,0.00030684,2]
[311054255,1704891071707,-813.18,0.00030684,2]
[311054256,1704891071717,-1000.0,0.00030684,2]
[311054257,1704891071726,-500.0,0.00030684,2]
[311054258,1704891071736,-916.52,0.00030684,2]
[311054259,1704891071746,-484.51,0.00030684,2]
[311054260,1704891071756,-500.0,0.00030684,2]
[311054261,1704891071766,-500.0,0.00030684,2]
[311054262,1704891071776,-500.0,0.00030684,2]
[311054263,1704891071785,-1010.96,0.00030684,2]
[311054264,1704891071795,-500.0,0.00030684,2]
[311054265,1704891071805,-500.0,0.00030684,2]
[311054266,1704891071814,-669.44,0.00030684,2]
[311054267,1704891071824,-1654.81,0.00030684,2]
[311054268,1704891071834,-500.0,0.00030684,2]
[311054269,1704891071844,-895.64,0.00030684,2]
[311054270,1704891071854,-5719.09,0.00030684,2]
[311054271,1704891071866,-500.0,0.00030684,2]
[311054272,1704891071877,-3241.68,0.00030684,2]
[311054273,1704891071886,-2147.06,0.00030684,2]
[311054274,1704891071897,-500.0,0.00030684,2]
[311054275,1704891071906,-4583.07,0.00030684,2]
[311054276,1704891071915,-500.0,0.00030684,2]
[311054277,1704891071925,-4104.47,0.00030684,2]
[311054278,1704891071934,-500.0,0.00030684,2]
[311054279,1704891071944,-1172.6,0.00030684,2]
[311054280,1704891071953,-500.0,0.00030684,2]
[311054281,1704891071963,-1135.8,0.00030684,2]
[311054282,1704891071972,-4864.49,0.00030684,2]
[311054283,1704891071982,-500.0,0.00030684,2]
[311054284,1704891071992,-1306.53,0.00030684,2]
[311054285,1704891072001,-605.42,0.00030684,2]
[311054286,1704891072011,-500.0,0.00030684,2]
[311054287,1704891072021,-613.66,0.00030684,2]
[311054288,1704891072030,-500.0,0.00030684,2]